bitfinex-derivatives/quotes_ETHF0:USTF0_20251007
["timestamp","ask_amount","ask_price","bid_price","bid_amount"]
[1759795527565,0.0021987,4691.3,4691.2,0.9349]
[1759795527770,0.2020987,4691.3,4691.2,0.9349]
[1759795528069,0.5247987,4691.3,4691.2,0.9349]
[1759795529365,0.0021987,4691.3,4691.2,0.9349]
[1759795529574,0.0021987,4691.3,4691.2,5.9349]
[1759795530067,0.1207,4692.5,4691.9,0.4128]
[1759795530374,4.33082,4692.6,4692.5,0.7209]
[1759795531069,0.00266662,4692.6,4692.5,1.07017388]
[1759795531271,0.00266662,4692.6,4692.5,1.45360388]
[1759795531676,0.52526662,4692.6,4692.5,1.45360388]
[1759795532968,0.00266662,4692.6,4692.5,1.45360388]
[1759795536367,0.00266662,4692.6,4692.5,42.25360388]
[1759795537877,0.31886662,4692.6,4692.5,42.25360388]
[1759795539072,0.00266662,4692.6,4692.5,42.25360388]
[1759795548378,0.3108,4693.8,4692.5,48.37454388]
[1759795548577,0.5176,4693.8,4693.7,0.4158]
[1759795548885,0.5176,4693.8,4693.7,0.955]
[1759795549082,0.5176,4693.8,4693.7,1.33833]
[1759795549379,0.51956796,4693.8,4693.7,1.33833]
[1759795549588,0.20876796,4693.8,4693.7,1.33833]
[1759795549885,0.00196796,4693.8,4693.7,1.33833]
[1759795550586,0.20876796,4693.8,4693.7,1.33833]
[1759795553487,0.00196796,4693.8,4693.7,1.33833]
[1759795555386,0.00196796,4693.8,4693.7,42.13833]
[1759795558589,0.31276796,4693.8,4693.7,41.755]
[1759795560191,0.31276796,4693.8,4693.7,41.541]
[1759795560396,0.31276796,4693.8,4693.7,41.755]
[1759795561895,0.31276796,4693.8,4693.7,41.4298]
[1759795562395,0.31276796,4693.8,4693.7,41.755]
[1759795564699,0.31276796,4693.8,4693.7,42.13833]
[1759795565099,0.00196796,4693.8,4693.7,42.13833]
[1759795565601,0.69609796,4693.8,4693.7,42.13833]
[1759795565799,0.31276796,4693.8,4693.7,42.13833]
[1759795567597,0.31276796,4693.8,4693.7,1.33833]
[1759795568094,0.00196796,4693.8,4693.7,1.33833]
[1759795570504,4.10866,4694.7,4694.6,0.79906]
[1759795570799,3.68714792,4694.7,4694.6,1.33826]
[1759795571104,3.5186,4695.2,4694.9,0.4158]
[1759795571302,0.47940113,4695.1,4695.0,1.46373]
[1759795571505,0.79292981,4695.1,4695.0,1.46373]
[1759795571707,0.99972981,4695.1,4695.0,1.46373]
[1759795573307,0.52032868,4695.1,4695.0,1.46373]
[1759795574005,0.72222868,4695.1,4695.0,1.33823]
[1759795574310,0.72222868,4695.1,4695.0,0.6298]
[1759795574508,1.20134581,4695.1,4695.0,0.6298]
[1759795575313,0.72222868,4695.1,4695.0,0.6298]
[1759795575512,1.20137719,4695.1,4695.0,0.6298]
[1759795575714,0.72222868,4695.1,4695.0,0.4236]
[1759795578718,0.7567,4694.8,4694.4,0.3131]
[1759795578916,4.47657,4694.5,4694.4,0.38328]
[1759795579111,4.0933,4694.5,4694.4,0.80518]
[1759795579311,4.0933,4694.5,4694.4,1.33108]
[1759795579517,3.9645,4694.5,4694.4,1.33108]
[1759795580612,4.0933,4694.5,4694.4,1.33108]
[1759795580818,0.7567,4694.5,4694.4,1.33108]
[1759795582618,0.8855,4694.5,4694.4,1.33108]
[1759795587227,1.13999,4694.2,4694.1,0.5912]
[1759795587423,0.7567,4694.2,4694.1,0.8052]
[1759795587624,0.7567,4694.2,4694.1,1.3311]
[1759795589426,0.7567,4694.2,4694.1,0.5973]
[1759795589629,1.14,4694.1,4694.0,0.3833]
[1759795589928,1.14,4694.1,4694.0,0.5973]
[1759795590533,1.14,4694.1,4694.0,0.8052]
[1759795591224,1.26881,4694.0,4693.9,0.38331]
[1759795591421,0.8855,4693.5,4693.4,0.521]
[1759795591729,0.5465,4693.5,4693.4,1.33116]
[1759795592130,0.7567,4693.5,4693.4,1.33116]
[1759795592328,0.8855,4693.5,4693.4,0.80526]
[1759795594230,0.3267,4693.5,4693.4,1.33116]
[1759795595030,0.92984,4693.7,4693.6,1.11714]
[1759795595834,1.14004,4693.7,4693.6,1.11714]
[1759795597529,0.7567,4693.7,4693.6,1.11714]
[1759795599733,0.8727,4693.5,4693.4,0.214]
[1759795599937,0.527,4693.5,4693.4,0.9788]
[1759795600937,0.7418,4693.5,4693.4,0.9788]
[1759795601237,0.8727,4693.5,4693.4,0.214]
[1759795601631,4.0805,4693.5,4693.4,0.214]
[1759795602739,0.3094,4693.2,4692.9,0.3247]
[1759795602929,0.7418,4692.8,4692.7,0.38341]
[1759795603435,0.7418,4692.8,4692.7,0.60451]
[1759795603937,1.12522,4692.7,4692.6,0.214]
[1759795604739,1.12522,4692.7,4692.5,0.38590388]
[1759795604740,1.12522,4692.7,4692.5,0.21647388]
[1759795605142,1.12522,4692.7,4692.5,0.00247388]
[1759795605340,0.7418,4692.6,4692.5,0.00247388]
[1759795611144,0.7418,4692.6,4692.5,0.22367388]
[1759795613350,0.7418,4692.6,4692.5,0.55187388]
[1759795613540,0.7418,4692.6,4692.5,0.22367388]
[1759795613847,0.7418,4692.6,4692.5,0.00247388]
[1759795620450,1.24322,4691.5,4691.4,0.2212]
[1759795620845,0.8597,4691.5,4691.4,0.5494]
[1759795621139,0.8597,4691.5,4691.4,0.7496]
[1759795621344,0.86184915,4691.5,4691.4,0.75170716]
[1759795621544,0.52154915,4691.5,4691.4,0.75170716]
[1759795621948,0.86184915,4691.5,4691.4,0.22330716]
[1759795622552,0.86184915,4691.5,4691.4,0.55150716]
[1759795623654,0.86184915,4691.5,4691.4,0.00210716]
[1759795625147,0.86184915,4691.5,4691.4,0.22330716]
[1759795625354,0.73364915,4691.5,4691.4,0.75170716]
[1759795625650,0.00214915,4691.5,4691.4,5.75170716]
[1759795627861,0.86184915,4691.5,4691.4,0.00210716]
[1759795628361,0.86184915,4691.5,4691.4,0.22330716]
[1759795628549,0.86184915,4691.5,4691.4,0.55150716]
[1759795629760,0.86184915,4691.5,4691.4,0.75170716]
[1759795631957,0.73364915,4691.5,4691.4,0.75170716]
[1759795640066,0.52154915,4691.5,4691.4,0.75170716]
[1759795640969,0.52154915,4691.5,4691.4,1.13522716]
[1759795641170,1.24995915,4691.5,4691.4,0.38562716]
[1759795641660,1.24995915,4691.5,4691.4,0.59472716]
[1759795642467,4.45775915,4691.5,4691.4,0.38562716]
[1759795647976,9.93492117,4691.5,4691.4,1e-08]
[1759795651381,10.14892117,4691.5,4691.4,1e-08]
[1759795653879,1.34361117,4691.5,4691.4,0.20910001]
[1759795654178,0.00214915,4691.5,4691.4,0.74900001]
[1759795654772,0.54034915,4691.5,4691.4,0.74900001]
[1759795655881,0.75504915,4691.5,4691.4,0.74900001]
[1759795658678,0.00214915,4691.5,4691.4,3.95680001]
[1759795658877,0.00214915,4691.5,4691.4,8.95680001]
[1759795660385,0.00214915,4691.5,4691.4,49.75680001]
[1759795661780,3.2078,4692.5,4691.5,0.1223]
[1759795662084,3.2078,4692.5,4692.4,0.7237]
[1759795662085,3.7285,4692.5,4692.4,0.7237]
[1759795662286,3.7285,4692.5,4692.4,0.9377]
[1759795662485,3.9321,4692.5,4692.4,0.9377]
[1759795662785,3.93365483,4692.5,4692.4,0.9377]
[1759795662981,3.93365483,4692.5,4692.4,1.32114]
[1759795666485,0.72585483,4692.5,4692.4,1.32114]
[1759795668688,0.00155483,4692.5,4692.4,1.32114]
[1759795669982,0.82865483,4692.5,4692.4,0.4211]
[1759795670182,0.7061,4692.3,4692.2,0.60356]
[1759795670480,0.7061,4692.3,4692.2,0.81756]
[1759795670680,0.7061,4692.3,4692.2,1.33026]
[1759795671482,0.3003,4691.9,4691.8,0.38349]
[1759795671790,0.7061,4691.9,4691.8,1.11629]
[1759795672483,0.7061,4691.9,4691.8,0.60359]
[1759795673592,0.7061,4691.9,4691.8,1.11629]
[1759795675787,0.3003,4691.9,4691.8,1.11629]
[1759795676089,0.5021,4691.9,4691.8,1.11629]
[1759795678486,0.7061,4691.9,4691.8,1.11629]
[1759795679993,0.7061,4692.4,4692.3,1.11624]
[1759795680593,0.00155483,4692.5,4692.3,0.81644]
[1759795680893,0.00155483,4692.5,4692.4,0.7328]
[1759795681095,0.50365483,4692.5,4692.4,0.7328]
[1759795681398,0.82865483,4692.5,4692.4,0.4341]
[1759795681796,0.70765483,4692.5,4692.4,0.9468]
[1759795682095,0.7061,4692.2,4692.1,0.38346]
[1759795682298,0.2018,4691.7,4691.4,1e-08]
[1759795682594,3.3288,4691.5,4691.4,1e-08]
[1759795683295,8.3288,4691.5,4691.4,1e-08]
[1759795686090,3.3288,4691.5,4691.4,1e-08]
[1759795686294,3.80499261,4691.5,4691.4,1e-08]
[1759795686492,0.38353,4691.4,4690.3,0.38361]
[1759795686692,0.3003,4690.3,4690.0,0.214]
[1759795686896,0.7061,4690.3,4690.2,0.90352]
[1759795687098,0.7061,4690.3,4690.2,0.2201]
[1759795687600,0.7061,4690.1,4690.0,1.33043]
[1759795687796,0.7061,4690.1,4690.0,1.33303459]
[1759795690700,0.7061,4690.1,4690.0,0.00260459]
[1759795693296,0.7061,4690.1,4690.0,1.11904459]
[1759795695004,0.5021,4690.1,4690.0,1.11904459]
[1759795695197,3.4096,4690.3,4690.2,0.81662]
[1759795695400,3.6136,4690.3,4690.2,1.11642]
[1759795695799,3.9139,4690.3,4690.2,1.11642]
[1759795696000,3.9139,4690.3,4690.2,0.81662]
[1759795697003,0.38362,4690.2,4690.0,0.00260459]
[1759795697206,0.7061,4690.1,4690.0,0.00260459]
[1759795700614,0.7061,4690.1,4690.0,0.52710459]
[1759795701007,0.7061,4690.1,4690.0,0.20570459]
[1759795701710,0.7061,4690.1,4690.0,0.74400459]
[1759795702104,0.7061,4690.1,4690.0,0.20570459]
[1759795702804,0.7061,4690.1,4690.0,0.52710459]
[1759795703003,0.7061,4690.1,4690.0,0.74400459]
[1759795705307,3.3288,4691.0,4690.5,0.8671]
[1759795705613,0.5258,4690.9,4690.8,1.12497]
[1759795705909,0.5258,4691.2,4691.1,0.42]
[1759795706111,3.8546,4691.5,4691.4,0.38352]
[1759795706414,0.5258,4691.9,4691.8,0.80349]
[1759795706613,0.7281,4691.9,4691.8,1.12489]
[1759795706909,3.3288,4692.0,4691.8,0.80349]
[1759795706910,3.2078,4692.0,4691.8,0.80349]
[1759795707111,3.7336,4692.0,4691.9,0.7414]
[1759795707307,3.9359,4692.0,4691.9,0.7414]
[1759795707608,0.2076,4691.4,4691.3,0.38353]
[1759795707910,0.7281,4691.4,4691.3,1.33893]
[1759795708606,0.5258,4691.4,4691.3,1.33893]
[1759795709301,0.5258,4691.7,4691.6,1.12491]
[1759795710207,0.7281,4691.7,4691.6,1.12491]
[1759795713414,1.1116,4691.7,4691.6,1.12491]
[1759795713914,0.7281,4691.7,4691.6,1.12491]
[1759795714914,1.1116,4691.7,4691.6,1.12491]
[1759795715809,0.7281,4691.7,4691.6,1.12491]
[1759795717917,0.7281,4691.7,4691.6,0.42]
[1759795718118,0.7281,4691.7,4691.6,0.7312]
[1759795721320,0.4117,4692.3,4692.2,0.80634]
[1759795721514,3.20935483,4692.5,4692.4,0.38344]
[1759795721715,3.41135483,4692.5,4692.4,1.11754]
[1759795721914,3.72395483,4692.5,4692.4,1.11754]
[1759795722516,3.72395483,4692.5,4691.9,0.214]
[1759795722517,0.7243,4692.3,4692.2,0.38345]
[1759795723220,1.10776,4692.2,4692.1,0.214]
[1759795723921,1.10776,4692.2,4692.1,0.4208]
[1759795724315,1.10776,4692.2,4692.1,0.214]
[1759795724720,0.79516,4692.2,4692.0,0.59747]
[1759795725021,0.7243,4692.1,4692.0,0.59747]
[1759795725222,0.7243,4692.1,4692.0,0.80427]
[1759795725619,0.7243,4692.1,4692.0,0.59027]
[1759795725821,0.7243,4692.1,4692.0,0.90147]
[1759795726316,0.38347,4692.0,4691.8,0.38349]
[1759795726517,0.38347,4692.0,4690.9,5.69816074]
[1759795726518,0.7243,4691.6,4691.5,0.38351]
[1759795726717,0.7243,4691.6,4690.9,4.4779]
[1759795726718,0.5146,4691.0,4690.9,4.32546]
[1759795726917,0.92471,4691.5,4691.4,0.38352]
[1759795727118,1.23731,4691.5,4691.4,0.59032]
[1759795727317,1.23731,4691.5,4691.4,0.38352]
[1759795727919,0.8538,4691.5,4691.4,0.90152]
[1759795728116,0.3126,4691.5,4691.4,1.11762]
[1759795728517,0.5294,4691.5,4691.4,1.11762]
[1759795729319,0.8571,4691.5,4691.4,1.33162]
[1759795729624,0.7502,4690.5,4690.4,4.312]
[1759795729813,0.7502,4690.5,4690.4,4.526]
[1759795730524,0.5445,4690.5,4690.4,4.526]
[1759795730717,0.7502,4690.5,4690.4,4.526]
[1759795735615,0.8722,4690.5,4690.4,4.526]
[1759795735821,0.7502,4690.5,4690.4,4.526]
[1759795736022,0.7502,4690.5,4690.4,1.3182]
[1759795736525,0.7502,4690.5,4690.4,1.1042]
[1759795736729,0.7502,4690.5,4690.4,1.3182]
[1759795737331,0.5445,4690.9,4690.8,0.7206]
[1759795737630,0.5445,4690.9,4690.8,0.9346]
[1759795738131,3.2078,4691.0,4690.8,1.01877]
[1759795738328,3.2078,4691.0,4690.9,0.7206]
[1759795738924,3.5355,4691.0,4690.9,0.7206]
[1759795739128,3.7523,4691.0,4690.9,0.7206]
[1759795742235,4.08,4691.0,4690.8,0.59757]
[1759795742439,4.08,4691.0,4690.9,0.2186]
[1759795742637,3.7523,4691.0,4690.9,0.7206]
[1759795743637,0.5445,4691.0,4690.9,0.7206]
[1759795744137,0.7502,4691.0,4690.9,0.7206]
[1759795744436,0.38356,4690.9,4690.8,0.59757]
[1759795744731,0.4225,4690.2,4690.1,0.2186]
[1759795745036,0.4225,4690.2,4690.1,0.214]
[1759795745231,0.4225,4690.2,4690.0,0.38623459]
[1759795745232,1.13382,4690.2,4690.0,0.38623459]
[1759795745439,1.13382,4690.2,4690.1,0.214]
[1759795746138,1.13382,4690.2,4690.0,0.00260459]
[1759795746339,1.13382,4690.2,4690.1,0.214]
[1759795746932,1.13382,4690.2,4690.0,0.00260459]
[1759795749841,1.13382,4690.2,4690.1,0.2186]
[1759795750039,1.13382,4690.2,4690.0,0.00260459]
[1759795750040,3.2078,4690.4,4690.3,0.2186]
[1759795750242,3.7523,4690.4,4690.3,0.9346]
[1759795750441,3.958,4690.4,4690.3,0.9346]
[1759795750638,3.4246,4690.4,4690.3,0.9346]
[1759795750842,3.2078,4690.4,4690.3,0.9346]
[1759795752044,3.7523,4690.4,4690.3,0.9346]
[1759795753643,3.958,4690.4,4690.3,0.9346]
[1759795755548,0.7502,4690.4,4690.3,0.9346]
[1759795755747,0.5445,4690.4,4690.3,0.9346]
[1759795756251,0.5445,4690.8,4690.7,0.7206]
[1759795756439,0.7502,4690.8,4690.7,0.7206]
[1759795757246,0.7502,4690.8,4690.7,1.10418]
[1759795757945,0.7502,4690.8,4690.7,1.31818]
[1759795759853,0.7502,4690.8,4690.7,0.4326]
[1759795760053,0.7502,4690.8,4690.7,0.214]
[1759795761248,0.3836,4690.4,4690.2,0.38362]
[1759795761442,0.7437,4690.3,4690.2,0.38362]
[1759795761647,0.7437,4690.3,4690.2,0.81832]
[1759795761860,0.7437,4690.3,4690.2,1.33952]
[1759795766055,1.12731,4690.3,4690.2,1.33952]
[1759795766962,0.7437,4690.3,4690.2,1.33952]
[1759795768561,0.95893,4690.9,4690.2,1.33952]
[1759795768562,0.38356,4690.9,4690.8,0.38356]
[1759795768755,0.7437,4690.9,4690.8,0.9559]
[1759795769060,0.7437,4690.9,4690.8,0.4347]
[1759795769461,0.3113,4690.4,4690.3,0.38361]
[1759795769655,0.81602,4690.3,4690.2,0.60432]
[1759795769958,0.7437,4690.3,4690.2,0.81832]
[1759795770359,0.7437,4690.3,4690.2,1.12222]
[1759795770861,0.7437,4690.3,4690.2,1.33952]
[1759795773461,0.5285,4690.3,4690.2,1.33952]
[1759795774461,0.5165,4690.5,4690.0,0.00260459]
[1759795774462,0.7437,4690.1,4690.0,0.00260459]
[1759795775266,0.7437,4690.1,4690.0,0.44060459]
[1759795775461,0.7437,4690.1,4690.0,0.00260459]
[1759795775663,5.7437,4690.1,4690.0,0.00260459]
[1759795775862,0.7437,4690.1,4690.0,0.00260459]
[1759795784175,0.7437,4690.1,4690.0,0.00260459]
[1759795788286,0.2081,4689.4,4689.3,0.38369]
[1759795788483,0.1219,4689.5,4688.9,0.38372]
[1759795788781,0.8602,4689.0,4688.9,0.38372]
[1759795788986,0.8602,4689.0,4688.8,0.38373]
[1759795789189,0.86257866,4689.0,4688.8,0.38556812]
[1759795789379,1.24629866,4689.0,4688.8,0.38556812]
[1759795792388,1.24629866,4689.0,4688.8,0.00183812]
[1759795795892,1.24629866,4689.0,4688.8,0.38556812]
[1759795801994,0.81203,4688.9,4688.8,0.38556812]
[1759795802185,1.12203,4688.9,4688.8,0.38556812]
[1759795805600,0.95936,4688.8,4688.0,0.3304]
[1759795805899,3.9461,4688.4,4688.3,0.38377]
[1759795806094,4.32987,4688.4,4688.1,0.38379]
[1759795806300,3.9461,4688.4,4688.1,0.38379]
[1759795806498,0.4283,4688.1,4688.0,0.4318]
[1759795806801,0.38379,4688.2,4687.9,0.02133174]
[1759795806802,0.8602,4688.0,4687.9,0.02133174]
[1759795806997,0.7383,4688.0,4687.9,0.78063174]
[1759795807198,0.7383,4688.0,4687.9,0.78251625]
[1759795807606,0.8602,4688.0,4687.9,0.78251625]
[1759795808805,0.8602,4688.0,4687.9,0.45211625]
[1759795808998,0.8602,4688.0,4687.9,0.24101625]
[1759795809805,0.8602,4688.0,4687.9,0.02321625]
[1759795812715,0.8602,4688.0,4687.9,0.24101625]
[1759795813913,0.8602,4688.0,4687.9,0.02321625]
[1759795821606,0.8602,4688.0,4687.9,0.22391625]
[1759795823114,0.8602,4688.0,4687.9,0.02321625]
[1759795826013,0.8602,4688.0,4687.9,0.40702625]
[1759795830319,1.244,4688.0,4687.9,0.40702625]
[1759795832116,1.244,4688.0,4687.2,1.53146074]
[1759795832117,0.38385,4687.5,4687.2,1.53146074]
[1759795832419,0.8755,4687.0,4686.9,0.38389]
[1759795833322,0.8755,4687.0,4686.9,0.00180512]
[1759795834222,0.8755,4687.0,4686.9,0.53320512]
[1759795834420,0.8755,4687.0,4686.9,0.20250512]
[1759795835221,0.5337,4687.0,4686.9,0.75140512]
[1759795835622,0.7489,4687.0,4686.9,0.75140512]
[1759795836023,0.8755,4687.0,4686.9,0.75140512]
[1759795839125,3.414,4687.4,4687.3,0.80776]
[1759795839426,3.6242,4687.4,4687.3,1.13876]
[1759795839726,3.9345,4687.4,4687.3,1.13876]
[1759795840022,0.7267,4687.4,4687.3,1.13876]
[1759795844121,0.5165,4687.4,4687.3,1.13876]
[1759795844324,3.7461,4688.0,4687.9,0.91761]
[1759795844928,4.0564,4688.0,4687.9,0.91761]
[1759795845426,4.0564,4688.0,4687.9,0.38381]
[1759795846018,1.03215,4687.5,4687.4,0.2028]
[1759795846224,0.8545,4687.0,4686.9,0.38569512]
[1759795846424,0.8545,4687.0,4686.9,0.80249512]
[1759795848324,0.8545,4687.0,4686.9,1.32159512]
[1759795849129,0.7267,4687.0,4686.9,1.32159512]
[1759795849818,0.8548,4687.0,4686.9,1.32159512]
[1759795850329,0.8548,4687.0,4686.9,1.01659512]
[1759795850535,0.8548,4687.0,4686.9,0.80249512]
[1759795851425,0.8548,4687.0,4686.9,1.10749512]
[1759795852136,0.8548,4687.0,4686.9,1.32159512]
[1759795852634,0.7267,4687.0,4686.9,1.32159512]
[1759795854638,0.8548,4687.0,4686.9,1.32159512]
[1759795854931,0.2062,4687.0,4686.9,1.32159512]
[1759795855130,0.5262,4687.3,4687.2,0.81267]
[1759795855332,0.5262,4687.3,4687.2,1.11767]
[1759795855532,0.7352,4687.3,4687.2,1.11767]
[1759795856037,0.7352,4687.3,4687.2,1.33167]
[1759795857035,0.95944,4688.4,4687.2,1.33167]
[1759795857036,0.5262,4688.3,4688.2,0.4288]
[1759795857334,0.214,4688.6,4688.3,0.38377]
[1759795857541,0.8633,4688.5,4688.4,0.214]
[1759795858635,0.8633,4688.5,4688.3,0.38377]
[1759795860141,1.24706,4688.5,4688.3,0.38377]
[1759795860339,1.24706,4688.5,4687.5,4.86946074]
[1759795860340,0.4403,4688.0,4687.5,4.73926074]
[1759795860535,0.7352,4687.7,4687.6,0.38383]
[1759795860937,0.7352,4687.7,4687.6,1.11763]
[1759795862642,0.7352,4687.7,4687.6,0.81263]
[1759795863146,0.7352,4687.7,4687.6,0.38383]
[1759795864039,0.7352,4687.7,4687.6,0.59853]
[1759795864247,0.7352,4687.7,4687.6,0.90353]
[1759795864541,0.7352,4687.7,4687.6,1.11763]
[1759795864742,3.734,4688.2,4688.1,1.11759]
[1759795866145,3.943,4688.2,4688.1,1.11759]
[1759795866639,3.4218,4688.2,4688.1,1.11759]
[1759795866841,0.5262,4688.5,4688.4,1.11757]
[1759795868738,0.7352,4688.5,4688.4,1.11757]
[1759795869340,0.8633,4688.5,4688.4,1.11757]
[1759795870549,0.7352,4688.5,4688.4,1.11757]
[1759795871250,3.6308,4688.9,4688.8,0.59843]
[1759795871744,3.943,4688.9,4688.8,0.59843]
[1759795872449,3.943,4688.9,4688.8,1.11753]
[1759795874445,0.7352,4688.9,4688.8,1.11753]
[1759795878249,0.5262,4688.9,4688.8,1.11753]
[1759795878650,0.30247866,4689.0,4688.9,0.7591]
[1759795878951,0.51317866,4689.0,4688.9,0.7591]
[1759795881057,0.71897866,4689.0,4688.9,1.14283]
[1759795882954,0.51317866,4689.0,4688.9,1.14283]
[1759795887161,0.71897866,4689.0,4688.9,1.14283]
[1759795887363,0.84667866,4689.0,4688.9,1.14283]
[1759795887563,0.84667866,4689.0,4688.9,1.35683]
[1759795889466,0.38374,4688.8,4688.6,0.38375]
[1759795889661,0.7166,4688.7,4688.6,0.38375]
[1759795889868,0.7166,4688.7,4688.6,1.14285]
[1759795890262,0.51317866,4689.0,4688.9,0.81783]
[1759795890463,0.71897866,4689.0,4688.9,1.14283]
[1759795891662,0.84667866,4689.0,4688.9,1.14283]
[1759795892560,0.71897866,4689.0,4688.9,1.14283]
[1759795892761,0.00237866,4689.0,4688.9,1.14283]
[1759795893067,0.00237866,4689.0,4688.9,1.35683]
[1759795893261,0.30247866,4689.0,4688.9,1.35683]
[1759795893469,0.51317866,4689.0,4688.9,1.35683]
[1759795898970,0.00237866,4689.0,4688.9,1.35683]
[1759795900770,0.53317866,4689.0,4688.9,1.35683]
[1759795901875,0.00237866,4689.0,4688.9,1.35683]
[1759795904175,0.31307866,4689.0,4688.9,1.35683]
[1759795905082,0.00237866,4689.0,4688.9,1.35683]
[1759795905477,0.53317866,4689.0,4688.9,1.35683]
[1759795908184,0.31307866,4689.0,4688.9,1.35683]
[1759795908383,0.00237866,4689.0,4688.9,1.35683]
[1759795909078,0.53047866,4689.0,4688.9,1.35683]
[1759795909983,0.74217866,4689.0,4688.9,1.35683]
[1759795910680,0.87067866,4689.0,4688.6,1.53146074]
[1759795910884,0.7398,4688.9,4688.8,0.58953]
[1759795911078,0.7398,4688.9,4688.8,0.91793]
[1759795911582,0.7398,4688.9,4688.8,1.11773]
[1759795913085,0.7398,4688.9,4688.8,1.33173]
[1759795913385,0.7398,4688.9,4688.8,0.58953]
[1759795914787,0.7398,4688.9,4688.8,0.91793]
[1759795915089,0.7398,4688.9,4688.8,1.11773]
[1759795919888,0.7398,4688.9,4688.8,0.734]
[1759795920088,0.7398,4688.9,4688.8,0.4056]
[1759795920286,0.7398,4688.9,4688.8,0.2058]
[1759795920591,0.7398,4688.6,4688.5,0.38376]
[1759795920782,0.1285,4688.5,4688.4,0.59776]
[1759795920988,0.8683,4688.5,4688.4,0.59776]
[1759795921189,0.8683,4688.5,4688.4,1.13196]
[1759795921386,0.00237866,4689.0,4688.9,1.11773]
[1759795921889,0.74217866,4689.0,4688.9,0.734]
[1759795922388,0.87067866,4689.0,4688.9,0.734]
[1759795924288,0.74217866,4689.0,4688.9,0.734]
[1759795924491,0.53047866,4689.0,4688.9,0.734]
[1759795924792,0.00237866,4689.0,4688.9,0.734]
[1759795927189,0.53047866,4689.0,4688.9,0.734]
[1759795928791,0.87067866,4689.0,4688.9,0.734]
[1759795929291,0.87067866,4689.0,4688.9,0.2058]
[1759795930488,0.7398,4688.8,4688.7,0.214]
[1759795930695,0.1285,4688.0,4687.8,1.53146074]
[1759795930884,0.7398,4687.9,4687.8,0.80362]
[1759795931290,0.7398,4687.9,4687.8,1.13202]
[1759795931489,0.7398,4687.9,4687.8,1.33182]
[1759795931696,0.7398,4687.9,4687.8,1.00342]
[1759795931895,0.7398,4687.9,4687.8,1.33182]
[1759795932098,0.7398,4687.9,4687.8,1.11782]
[1759795932487,0.7398,4687.7,4687.5,0.38384]
[1759795932893,0.7398,4687.7,4687.6,0.5342]
[1759795933198,0.7398,4687.7,4687.6,0.2058]
[1759795933699,0.7398,4687.7,4687.6,0.734]
[1759795934692,0.7398,4687.7,4687.6,0.4056]
[1759795935407,0.7398,4687.7,4687.6,0.734]
[1759795936096,0.7398,4687.7,4687.6,0.2058]
[1759795936693,0.7398,4687.7,4687.6,0.5342]
[1759795936901,0.7398,4687.7,4687.6,0.734]
[1759795940102,0.8521,4687.5,4687.4,0.214]
[1759795940403,0.7206,4687.5,4687.4,0.9472]
[1759795940904,3.2078,4687.9,4687.7,0.79462]
[1759795941197,0.38378,4688.3,4688.2,0.7332]
[1759795941198,1.10438,4688.3,4688.2,0.7332]
[1759795941590,0.7206,4688.3,4688.2,0.7332]
[1759795941792,0.7206,4688.3,4688.2,0.2106]
[1759795941995,0.7206,4688.1,4688.0,0.5944]
[1759795942799,0.7206,4688.1,4688.0,0.2106]
[1759795944509,0.5488,4688.0,4687.9,0.38381]
[1759795944804,0.8521,4688.0,4687.9,0.38381]
[1759795946404,0.8521,4688.0,4687.9,0.59441]
[1759795946800,0.7206,4688.0,4687.9,1.11701]
[1759795947205,0.4173,4687.7,4687.6,0.80843]
[1759795947405,0.7206,4687.7,4687.6,0.80843]
[1759795947610,0.7206,4687.7,4687.6,1.33103]
[1759795948111,0.7206,4687.7,4687.6,1.11703]
[1759795951107,1.10442,4687.7,4687.6,1.11703]
[1759795953112,1.10442,4687.7,4687.6,0.7332]
[1759795953412,1.10442,4687.7,4687.6,1.11703]
[1759795954712,1.10442,4687.7,4687.6,0.7332]
[1759795956011,1.10442,4687.7,4687.6,0.533]
[1759795956214,1.10442,4687.7,4687.6,0.59443]
[1759795957409,1.10442,4687.7,4687.6,0.92143]
[1759795958917,1.10442,4687.7,4687.6,0.59443]
[1759795959416,1.10442,4687.7,4687.6,0.2106]
[1759795960512,1.10442,4687.7,4687.6,0.92143]
[1759795960711,1.10442,4687.7,4687.6,1.12993]
[1759795962622,1.10442,4687.7,4687.6,0.2106]
[1759795963016,0.92644,4687.5,4687.4,0.2041]
[1759795963320,1.22634,4687.5,4687.4,0.2041]
[1759795963722,1.22634,4687.5,4687.4,0.58795]
[1759795965423,1.22634,4687.5,4687.4,0.2041]
[1759795966914,1.09646,4687.3,4687.2,0.2041]
[1759795967822,1.09646,4687.3,4687.2,0.91497]
[1759795968015,1.09646,4687.3,4687.2,1.12347]
[1759795968822,0.7126,4687.3,4687.2,1.12347]
[1759795969019,3.81145,4687.4,4687.3,0.69966]
[1759795969226,4.33545,4687.4,4687.3,1.11866]
[1759795970123,4.33541,4687.9,4687.8,0.5231]
[1759795970519,1.12763,4687.6,4687.5,0.5231]
[1759795972625,1.12763,4687.6,4687.5,0.7348]
[1759795974628,1.12763,4687.6,4687.5,0.2073]
[1759795977125,0.38385,4687.4,4687.3,0.2073]
[1759795977331,1.12765,4687.4,4687.3,0.2073]
[1759795977632,1.12765,4687.4,4687.3,0.5231]
[1759795982436,1.12765,4687.4,4687.3,0.2073]
[1759795985840,1.12765,4687.4,4687.3,0.59116]
[1759795986736,0.38387,4687.1,4687.0,0.38388]
[1759795986939,1.12767,4687.1,4687.0,0.59788]
[1759795988041,1.12767,4687.1,4687.0,0.38388]
[1759795989340,1.12767,4687.1,4687.0,1.11868]
[1759795989738,0.7438,4687.1,4687.0,1.11868]